Cogmind - Beta 10.1 @@@ ROGUE MODE // 2020.09.28 @ 21:53:59 Player: URUKi Result: Destroyed by Y-45 Defender with Heavy Assault Rifle Performance ------------- Evolutions (1) 500 Regions Visited (3) 600 Robots Destroyed (58) 290 Value Destroyed (1188) 1188 Prototype IDs (1) 20 Alien Tech Used (0) 0 Bonus (223) 223 TOTAL SCORE: 2821 Bonus ------- High Alert Combat Kills 35 Follower Combat Kills 188 Cogmind --------- Core Integrity 0/400 Matter 262/300 Energy 261/265 System Corruption 0% Temperature Cool (11) Movement Walking (210) Ox3 Location -9/Storage Parts ------- > --- POWER (1) -------- Improved Ion Engine > --- PROPULSION (2) --- Aluminum Leg Aluminum Leg > --- UTILITY (3) ------ Large Storage Unit Large Storage Unit Large Storage Unit > --- WEAPON (3) ------- Mini Grenade Launcher Mini Grenade Launcher Great Maul > --- INVENTORY (22) --- Aluminum Leg Aluminum Leg Medium Storage Unit Medium Storage Unit Medium Storage Unit Large Battery (300) Terrain Scanner Armor Integrity Analyzer Medium Armor Plating Medium Armor Plating Shield Generator Improved EM Shotgun Improved EM Shotgun Improved EM Shotgun Small Laser Small Laser EMP Blaster Mini Grenade Launcher Mini Grenade Launcher Great Maul Great Maul Peak State ------------ > --- POWER ------------ Improved Ion Engine > --- PROPULSION ------- Wheel Wheel > --- UTILITY ---------- Large Storage Unit Large Storage Unit Large Storage Unit > --- WEAPON ----------- Improved Medium Laser Light EM Pulse Cannon Great Maul > --- INVENTORY -------- Light Ion Engine Compact Wheel Medium Storage Unit Medium Storage Unit Medium Storage Unit Terrain Scanner Armor Integrity Analyzer Shield Generator Small Laser Small Laser Hammer Great Maul Great Maul Great Maul [Rating: 17] Favorites ----------- Power Light Ion Engine Engine Light Ion Engine Propulsion Aluminum Leg Leg Aluminum Leg Wheel Wheel Utility Large Storage Unit Device Heat Sink Storage Large Storage Unit Protection Light Armor Plating Weapon Great Maul Energy Gun Small Laser Energy Cannon Light EM Pulse Cannon Ballistic Gun Light Assault Rifle Launcher Mini Grenade Launcher Impact Weapon Great Maul Build | -11 -10 -9 -9 ------- Run | Scr Mat Mat Sto Slots Evolved 2 | . . 2 . Power . | . . . . Propulsion . | . . . . Utility 1 | . . 1 . Weapon 1 | . . 1 . Parts Attached 60 | 6 17 23 14 Power 5 | 1 1 1 2 Engine 5 | 1 1 1 2 Core . | . . . . Reactor . | . . . . Propulsion 14 | 2 2 4 6 Treads . | . . . . Leg 10 | 2 2 2 4 Wheel 4 | . . 2 2 Hover . | . . . . Flight . | . . . . Utility 11 | 1 7 3 . Device 1 | . 1 . . Storage 8 | 1 4 3 . Processor . | . . . . Hackware . | . . . . Protection 2 | . 2 . . Artifact . | . . . . Weapon 30 | 2 7 15 6 Energy Gun 11 | 2 . 7 2 Energy Cannon 1 | . . 1 . Ballistic Gun 7 | . 4 3 . Ballistic Cannon . | . . . . Launcher 3 | . . . 3 Special Weapon . | . . . . Impact Weapon 8 | . 3 4 1 Slashing Weapon . | . . . . Piercing Weapon . | . . . . Special Melee Weapon . | . . . . Unidentified Prototypes 1 | . . 1 . Parts Lost 26 | . 5 12 9 Power 4 | . 1 1 2 Propulsion 8 | . 2 4 2 Utility 1 | . 1 . . Weapon 13 | . 1 7 5 Highest Loss Streak 6 | . 2 6 4 Average Slot Usage (%) 94 | . 97 91 93 Engine 10 | . 14 9 6 Leg 18 | . 27 9 17 Wheel 3 | . . 8 3 Storage 27 | . 19 32 33 Protection 1 | . 4 . . Energy Gun 9 | . 10 11 5 Energy Cannon 1 | . . 1 2 Ballistic Gun 6 | . 13 5 . Launcher 2 | . . . 8 Impact Weapon 9 | . 3 12 14 Naked Turns . | . . . . Heaviest Build 67 | 10 23 67 66 Greatest Support 20 | 20 20 20 20 Greatest Overweight (x) 6 | 3 1 6 5 Average Overweight (x) 1 | . . 3 2 Largest Inventory Capacity 22 | 6 12 22 22 Average Capacity 15 | 5 7 20 22 Most Carried 22 | 6 8 14 22 Average Carried 10 | 3 6 8 18 Final Capacity 22 | 6 12 22 22 Final Carried 21 | 6 7 14 21 Class Distribution -------------------- 59% | Hauler-Mutant 40% | Mutant Dominant Class ---------------- Mutant | -10/Materials Hauler-Mutant | -9/Materials Hauler-Mutant | -9/Storage Resources | -11 -10 -9 -9 ----------- Run | Scr Mat Mat Sto Matter Collected 958 | 179 253 224 302 Remotely . | . . . . Salvage Created 1828 | . 420 498 910 Parts 103 | . 27 23 53 Haulers Intercepted 2 | . . . 2 Recyclers Shooed 5 | . 4 . 1 Parts Field Recycled . | . . . . Retrieved Matter . | . . . . Parts Self-Destructed . | . . . . Prevented . | . . . . Kills | -11 -10 -9 -9 ------- Run | Scr Mat Mat Sto Combat Hostiles Destroyed 35 | . 10 6 19 Melee 5 | . . 2 3 Guns 15 | . 10 4 1 Cannons 2 | . . . 2 AOE 12 | . . . 12 Classes Destroyed 8 | . 5 2 1 Worker 6 | . 1 3 2 Builder 6 | . . 3 3 Hauler 2 | . . . 2 Recycler 7 | . 1 2 4 Watcher 2 | . 1 . 1 Swarmer 13 | . 6 3 4 Grunt 15 | . 4 . 11 Sentry 7 | . . 3 4 Best Kill Streak 13 | . 4 4 13 Combat Bots Only 7 | . 3 3 7 Max Kills in Single Turn 8 | . 1 1 8 Gunslinging . | . . . . Exploded 4 | . . . 4 Melee 1 | . . 1 1 Uniques/NPCs Destroyed . | . . . . Combat | -11 -10 -9 -9 -------- Run | Scr Mat Mat Sto Damage Taken 3129 | . 624 992 1513 Core 474 | . 71 79 324 Absorbed by Shields . | . . . . Core Remaining (%) 85 | 100 71 . . Volleys Fired 92 | . 38 25 29 Largest 2 | . 2 2 2 Hottest 112 | . 80 105 112 Shots Fired 153 | . 73 44 36 Gun 127 | . 73 44 10 Cannon 5 | . . . 5 Launcher 21 | . . . 21 Special . | . . . . Kinetic 67 | . 48 19 . Thermal 41 | . 12 19 10 Explosive 21 | . . . 21 Electromagnetic 24 | . 13 6 5 Robot Hit Streak 18 | . 9 12 18 Robot Miss Streak 3 | . 3 2 1 Penetration Max . | . . . . Secondary Targets 4 | . 2 2 . Max Gunslinging Chain 1 | . 1 1 . Shots Hit Robots 146 | . 48 53 45 Core Hits 89 | . 26 15 48 Critical Hits 1 | . . 1 . Critical Kills . | . . . . Critical Parts Destroyed . | . . . . Melee Attacks 57 | . 7 19 31 Impact 57 | . 7 19 31 Slashing . | . . . . Piercing . | . . . . Sneak Attacks 13 | . . 10 3 Combat Hostiles . | . . . . Follow-up Attacks 2 | . . . 2 Damage Inflicted 4259 | . 695 1260 2304 Guns 971 | . 464 423 84 Cannons 115 | . . . 115 Explosions 1494 | . 87 63 1344 Melee 1671 | . 136 774 761 Ramming 8 | . 8 . . Kinetic 404 | . 253 151 . Thermal 626 | . 147 291 188 Explosive 1240 | . . . 1240 Electromagnetic 310 | . 151 44 115 Impact 1671 | . 136 774 761 Slashing . | . . . . Piercing . | . . . . Highest Corruption . | . . . . Average Corruption . | . . . . Corruption Purged . | . . . . Overload Shots . | . . . . Overflow Damage 441 | . 22 225 194 Projectiles 7 | . . . 7 Explosions 165 | . 6 22 137 Melee 269 | . 16 203 50 Knockbacks 6 | . . 3 3 Impact 5 | . . 3 2 Kinetic . | . . . . Secondary 1 | . . . 1 Self-Inflicted Damage 212 | . 40 36 136 Shots 6 | . 1 1 4 Rammed 1 | . 1 . . Targets Rammed 2 | . 2 . . Kicked 1 | . 1 . . Crushed . | . . . . Highest Temperature 153 | . 153 109 105 Average Temperature 36 | . 35 36 41 Received Heat Transfer 879 | . 129 270 480 Siege Activations . | . . . . Robots Corrupted . | . . . . Combat Hostiles . | . . . . Parts Fried 14 | . 1 8 5 Impact Corruptions 15 | . 1 9 5 Robots Melted . | . . . . Combat Hostiles . | . . . . Parts Melted . | . . . . Heat Transferred 1292 | . 250 655 387 Parts Sabotaged . | . . . . Parts Stolen . | . . . . Parts Stripped . | . . . . Power Chain Reactions 3 | . 1 1 1 Missiles Intercepted . | . . . . Alert | -11 -10 -9 -9 ------- Run | Scr Mat Mat Sto Peak Influence 590 | . 212 80 590 Initial 20 | . . . 20 Average 118 | . 81 36 270 Maximum Alert Level 2 | . 1 . 2 Low Security (%) 84 | 100 97 100 49 Level 1 6 | . 2 . 21 Level 2 8 | . . . 29 Level 3 . | . . . . Level 4 . | . . . . Level 5 . | . . . . High Security . | . . . . Max Security . | . . . . Squads Dispatched 9 | . 3 . 6 Investigation 2 | . 2 . . Extermination . | . . . . Reinforcement 4 | . 1 . 3 Assault 2 | . . . 2 Garrison 1 | . . . 1 Intercept . | . . . . Construction Impeded 1 | . . . 1 Haulers Reinforced . | . . . . Stealth | -11 -10 -9 -9 --------- Run | Scr Mat Mat Sto Distress Signals 6 | . 2 2 2 Communications Jammed . | . . . . Distress Signals . | . . . . Times Spotted 62 | . 20 8 34 Peak Tracking Total 9 | . 7 5 9 Tactical Retreats 4 | . 3 . 1 Traps | -11 -10 -9 -9 ------- Run | Scr Mat Mat Sto Traps Triggered 2 | . 2 . . Indirectly . | . . . . Trap Hack Attempts . | . . . . Triggered . | . . . . Disarmed . | . . . . Reprogrammed . | . . . . Reused . | . . . . Traps Extracted . | . . . . Installed . | . . . . Triggered . | . . . . Machines | -11 -10 -9 -9 ---------- Run | Scr Mat Mat Sto Machines Disabled 8 | . 1 1 6 Max in Single Turn 1 | . 1 1 1 Machines Sabotaged . | . . . . Garrisons Compromised . | . . . . Overloaded Fab Kills . | . . . . Fab Network Shutdowns . | . . . . Hacking | -11 -10 -9 -9 --------- Run | Scr Mat Mat Sto Machines Accessed 3 | . 1 1 1 Terminals 2 | . . 1 1 Fabricators . | . . . . Repair Stations . | . . . . Recycling Units 1 | . 1 . . Scanalyzers . | . . . . Garrison Access . | . . . . Total Hacks 3 | . 1 1 1 Successful 3 | . 1 1 1 Failed . | . . . . Catastrophic . | . . . . Database Lockouts . | . . . . Manual . | . . . . Terminals 2 | . . 1 1 Fabricators . | . . . . Repair Stations . | . . . . Recycling Units 1 | . 1 . . Scanalyzers . | . . . . Garrison Access . | . . . . Terminal Hacks 2 | . . 1 1 Open Door 1 | . . . 1 Alert Level 1 | . . 1 . Fabricator Hacks . | . . . . Repair Station Hacks . | . . . . Recycling Unit Hacks 1 | . 1 . . Recycle Component 1 | . 1 . . Scanalyzer . | . . . . Garrison Access Hacks . | . . . . Unauthorized Hacks . | . . . . Terminals . | . . . . Fabricators . | . . . . Repair Stations . | . . . . Recycling Units . | . . . . Scanalyzers . | . . . . Garrison Access . | . . . . Data Cores Recovered . | . . . . Used . | . . . . Hacking Detections 1 | . . . 1 Full Trace Events . | . . . . Feedback Events . | . . . . Feedback Blocked . | . . . . Robot Schematics Acquired . | . . . . Robots Built . | . . . . Matter . | . . . . Time . | . . . . Total Robot Build Rating . | . . . . Part Schematics Acquired . | . . . . Parts Built . | . . . . Matter . | . . . . Time . | . . . . Total Part Build Rating . | . . . . Parts Repaired . | . . . . Time . | . . . . Parts Recycled 1 | . 1 . . Recycled Matter . | . . . . Retrieved Matter . | . . . . Retrieved Components . | . . . . Parts Scanalyzed . | . . . . Part Schematics Acquired . | . . . . Parts Damaged . | . . . . Bothacking | -11 -10 -9 -9 ------------ Run | Scr Mat Mat Sto Used RIF Installer . | . . . . Robots Hacked . | . . . . Non-combat . | . . . . Combat . | . . . . Robot Hacks Applied . | . . . . Relay Couplers Released . | . . . . Robots Rewired . | . . . . Allies Hacked . | . . . . Hacks Repelled . | . . . . Allies | -11 -10 -9 -9 -------- Run | Scr Mat Mat Sto Total Allies 2 | . . . 2 Largest Group 2 | . . . 2 Highest-Rated Group 62 | . . . 62 Highest-Rated Ally 31 | . . . 31 Total Orders . | . . . . Ally Attacks 27 | . . . 27 Total Damage 434 | . . . 434 Kills 8 | . . . 8 Allies Corrupted . | . . . . Allies Melted . | . . . . Intel | -11 -10 -9 -9 ------- Run | Scr Mat Mat Sto Robot Analysis Total . | . . . . Derelict Logs Recovered . | . . . . Drone Launches . | . . . . Drone Recoveries . | . . . . Exploration | -11 -10 -9 -9 ------------- Run | Scr Mat Mat Sto Turns Passed 2391 | 70 862 778 681 Spaces Moved 1214 | 56 512 395 251 Core 23 | 23 . . . Treads . | . . . . Legs 860 | 33 512 131 184 Wheels 331 | . . 264 67 Hover . | . . . . Flight . | . . . . Fastest Speed 50 | 50 120 110 100 Average Speed 140 | 93 124 147 173 Slowest Speed 270 | 200 150 270 270 Overloaded Moves . | . . . . Propulsion Burnouts . | . . . . Robots Hopped . | . . . . Cave-ins Triggered . | . . . . Exploration Rate (%) 28 | 3 53 29 30 Regions Visited 3 Branch Regions 1 Pre-discovered Areas . | . . . . Known Exits Taken . | . . . . Unknown Exits Taken 3 | 1 1 1 . Scrap Searched . | . . . . Spaces Dug . | . . . . Terrain Destroyed 146 | . 2 2 142 Melee . | . . . . Projectile . | . . . . AOE 146 | . 2 2 142 Terrain Rammed . | . . . . Walls Destroyed . | . . . . Machines Disabled . | . . . . Actions | -11 -10 -9 -9 --------- Run | Scr Mat Mat Sto Total 1656 | 73 662 513 408 Wait 135 | . 51 29 55 Move 1211 | 55 511 394 251 Hop . | . . . . Pick Up 63 | 12 19 13 19 Fast Attach 18 | . 6 9 3 Attach 42 | 6 11 14 11 Detach 16 | . 2 9 5 Swap . | . . . . Drop 22 | . 15 1 6 Fire 92 | . 38 25 29 Melee 55 | . 7 19 29 Ram . | . . . . Kick 2 | . 2 . . Crush . | . . . . Escape Stasis . | . . . . Rewire . | . . . . Trap . | . . . . Miscellaneous . | . . . . Route ------- -11/Scrapyard -10/Materials (discovered 2 exits: *Mat / [*Min]) -9/Materials -9/Storage History --------- Turn | Location | Event 19 | -11/Scrapyard | Discovered new exit (range 16) 71 | -11/Scrapyard | Entered Materials 274 | -10/Materials | Discovered new exit (range 12) 313 | -10/Materials | Build established: Mutant 729 | -10/Materials | Discovered new exit (range 15) 933 | -10/Materials | Entered another Materials area 933 | -9/Materials | Evolved 2 slots: Utility x1, Weapon x1 1153 | -9/Materials | Lost 3 parts (1p1n1w) 1210 | -9/Materials | Lost 6 parts (2n4w) 1259 | -9/Materials | Build established: Hauler-Mutant 1351 | -9/Materials | Discovered new exit (range 16) 1711 | -9/Materials | Entered Storage 1927 | -9/Storage | Lost 3 parts (1p2w) 1983 | -9/Storage | Met a pair of Derelict thieves 2087 | -9/Storage | Core integrity fell below 50% 2117 | -9/Storage | Core integrity fell below 20% 2137 | -9/Storage | Destroyed 7 combat bots 2141 | -9/Storage | Lost 4 parts (2n2w) 2357 | -9/Storage | Garrison activated, responded to threat 2392 | -9/Storage | Destroyed by Y-45 Defender with Heavy Assault Rifle Last Messages --------------- K-01 Serf collects debris. The unstable cave ceiling collapses. K-01 Serf collects debris. U-05 Engineer builds a Wall. The unstable cave ceiling collapses. K-01 Serf crushed by falling debris. K-01 Serf system corrupted by crushing effect. K-01 Serf destroyed. K-01 Serf collects debris. The unstable cave ceiling collapses. U-05 Engineer builds a Wall. K-01 Serf collects debris. Acquired 13 matter. K-01 Serf collects debris. U-05 Engineer builds a Wall. K-01 Serf collects debris. The unstable cave ceiling collapses. K-01 Serf collects debris. U-05 Engineer builds a Wall. K-01 Serf collects debris. Map ----- +----------------------------------------------------+ | ?????????????????????????????????????????????????? | | ?????????????????????????????????????????????????? | | ?????????????????????????????????????????????????? | | ?????????????????????????????????????????????????? | | ?????????????????????????????????????????????????? | | ?????????????????????????????????????????????????? | | ?????????????????????????????????????????????????? | | ?????????????????????????????????????????????????? | | ?????????????????????????????????????????????????? | | ?????????????????????????????????????????????????? | | ?????????????????????????????????????????????????? | | ?????????????????????????????????????????????????? | | ?????????????????????????????????????????????????? | | ?????????????????????????????????????????????????? | | ?????????????????????????????????????????????????? | | ?????????????????????????????????????????????????? | | ?????????????????????????????????????????????????? | | ?????????????????????????????????????????????????? | | ?????????????????????????????????????????????????? | | ?????????????????????????????????????????????????? | | ??????????????????????????????#??????????????????? | | ????????????????????????????? #??????????????????? | | ?????????????????????#??????? #??????????????????? | | ?????????????????????# ?????? #### #####?????????? | | ?????????????????????# """""" Y ??????????? | | ?????????????????????# @ ##????????????????? | | ?????????????????????### ##/##????????????? | | ???????????????????????# Y ##???????????? | | ???????????????????????# # T#???????????? | | ???????????????????????# # # ##" "##???????????? | | ???????????????????????# # ##??? ????????????? | | ???????????????????????# # #????!!#??????????? | | ??????????????????????## k #??????#??????????? | | ??????????????????????# # ##?????????????????? | | ????????????????????###### [ #?????????????????? | | ????????????????????# # # ####?????????????????? | | ????????????????????# ##/#######??????????????? | | ????????????????????# # #??????????????? | | ????????????????????# #%! #??????????????? | | ????????????????????# #= #??????????????? | | ??????????????????" + + """"" #??????????????? | | ???????????#??????" # # "!???" #??????????????? | | ???????????# ??"""" # # "!???" #??????????????? | | ???????????? ?? # # """""" #??????????????? | | ????????????? ?? # # ? #??????????????? | | ??????????#####/### # ####???###??????????????? | | ?????????## # #???????????????????????? | | ?????????"" # !% #???????????????????????? | | ??????????" # #########???????????????? | | ?????????????"" """ # % # # #"""#???????????????? | +----------------------------------------------------+ Best States ------------- Heat Dissipation 35 Energy Generation 12 Energy Capacity 265 Matter Stores 300 Matter Capacity 300 Sight Range 16 Terrain Scan Density 10 Armor Coverage 150 Evasion (%) 50 Item Schematics ----------------- None Robot Schematics ------------------ None Fabricated ------------ Nothing Alien Tech Used ----------------- None Achievements -------------- Crack Shot Hey, That's Mine! Loot Pinata Risk Taker Troublemaker Challenges ------------ None Game ------ Seed MissilePhaseDoomcannon Manual? 0 Play Time 01:10:39 Cumulative 3.6 hours Start 2020.09.28 @ 20:34:13 End 2020.09.28 @ 21:53:59 Sessions 1 Manual Loads 0 Difficulty Rogue Special Mode None Game No. 5 Rogue 5 Adventurer 0 Explorer 0 Win Type - Total 0 Types 0/0/0/0/0/0/0/0/0 Lore% 0 Gallery% 4 Achievement% 3 Wizard Run 0 Options --------- ASCII 0 Keyboard 1 Movement Arrows Keybinds 0 Fullscreen 1 Font 14/SmallcapsGlow Map View 84x54 Tactical HUD 0 Map Filters NONE Filters NONE Steam 1 RUN: 269c0cc8-4ae1-44ee-b286-6877e59e756f